fUST/lending_fUST_20240830
["ID","MTS","AMOUNT","RATE_DAILY","PERIOD"]
[336642237,1724995839612,-502.94565628,0.00022999,5]
[336642240,1724995839623,-500.0,0.00022999,5]
[336642242,1724995839634,-500.0,0.00022999,5]
[336642244,1724995839645,-566.62755411,0.00022999,5]
[336642246,1724995839656,-500.0,0.00022999,5]
[336642248,1724995839667,-500.0,0.00022999,5]
[336642250,1724995839680,-500.0,0.00022999,5]
[336642253,1724995839690,-500.0,0.00022999,5]
[336642255,1724995839700,-500.0,0.00022999,5]
[336642257,1724995839710,-500.0,0.00022999,5]
[336642259,1724995839721,-500.0,0.00022999,5]
[336642261,1724995839731,-500.0,0.00022999,5]
[336642263,1724995839742,-500.0,0.00022999,5]
[336642265,1724995839753,-500.0,0.00022999,5]
[336642267,1724995839765,-500.0,0.00022999,5]
[336642269,1724995839777,-500.0,0.00022999,5]
[336642272,1724995839788,-500.0,0.00022999,5]
[336642273,1724995839799,-500.0,0.00022999,5]
[336642275,1724995839809,-503.57369598,0.00022999,5]
[336642277,1724995839821,-500.0,0.00022999,5]
[336642279,1724995839832,-502.13047584,0.00022999,5]
[336642281,1724995839843,-500.0,0.00022999,5]
[336642284,1724995839856,-500.0,0.00022999,5]
[336642286,1724995839868,-500.0,0.00022999,5]
[336642288,1724995839879,-500.0,0.00022999,5]
[336642290,1724995839890,-500.0,0.00022999,5]
[336642292,1724995839900,-500.0,0.00022999,5]
[336642294,1724995839912,-500.0,0.00022999,5]
[336642297,1724995839923,-503.97970658,0.00022999,5]
[336642299,1724995839934,-500.0,0.00022999,5]
[336642301,1724995839945,-500.0,0.00022999,5]
[336642303,1724995839955,-500.0,0.00022999,5]
[336642305,1724995839965,-500.0,0.00022999,5]
[336642307,1724995839975,-500.0,0.00022999,5]
[336642309,1724995839986,-500.0,0.00022999,5]
[336642311,1724995839996,-500.0,0.00022999,5]
[336642313,1724995840006,-500.0,0.00022999,5]
[336642315,1724995840017,-500.0,0.00022999,5]
[336642318,1724995840028,-500.0,0.00022999,5]
[336642320,1724995840041,-500.0,0.00022999,5]
[336642322,1724995840052,-500.0,0.00022999,5]
[336642324,1724995840063,-500.0,0.00022999,5]
[336642326,1724995840073,-500.0,0.00022999,5]
[336642329,1724995840089,-500.0,0.00022999,5]
[336642331,1724995840100,-500.0,0.00022999,5]
[336642333,1724995840111,-500.0,0.00022999,5]
[336642335,1724995840122,-500.0,0.00022999,5]
[336642337,1724995840132,-500.0,0.00022999,5]
[336642339,1724995840143,-502.28102163,0.00022999,5]
[336642341,1724995840154,-500.0,0.00022999,5]
[336642343,1724995840165,-500.0,0.00022999,5]
[336642346,1724995840176,-504.45311609,0.00022999,5]
[336642348,1724995840190,-500.0,0.00022999,5]
[336642350,1724995840202,-500.0,0.00022999,5]
[336642352,1724995840213,-500.0,0.00022999,5]
[336642355,1724995840226,-500.0,0.00022999,5]
[336642357,1724995840239,-500.0,0.00022999,5]
[336642359,1724995840251,-500.0,0.00022999,5]
[336642375,1724995840393,-500.59762837,0.00022999,5]
[336642377,1724995840403,-500.0,0.00022999,5]
[336642379,1724995840413,-500.0,0.00022999,5]
[336642381,1724995840422,-500.0,0.00022999,5]
[336642383,1724995840432,-500.0,0.00022999,5]
[336642385,1724995840441,-500.0,0.00022999,5]
[336642387,1724995840450,-500.0,0.00022999,5]
[336642389,1724995840459,-500.0,0.00022999,5]
[336642391,1724995840469,-500.0,0.00022999,5]
[336642393,1724995840479,-500.0,0.00022999,5]
[336642395,1724995840488,-24693.26390762,0.00023,4]
[336642397,1724995840498,-3192.67177974,0.00023,3]
[336642399,1724995840507,-168.43115849,0.00023036,2]
[336642401,1724995840517,-168.43115849,0.00023173,2]
[336642403,1724995840526,-500.0,0.00023271,5]
[336642405,1724995840535,-500.0,0.00023272,5]
[336642407,1724995840545,-500.0,0.00023272,5]
[336642409,1724995840554,-500.0,0.00023272,5]
[336642411,1724995840563,-474.86260083,0.00023272,5]
[336642421,1724995840651,-25.13739917,0.00023272,5]
[336642423,1724995840661,-500.0,0.00023272,5]
[336642425,1724995840670,-500.0,0.00023272,5]
[336642427,1724995840679,-500.0,0.00023272,5]
[336642429,1724995840689,-500.0,0.00023272,5]
[336642431,1724995840699,-503.05006732,0.00023272,5]
[336642433,1724995840709,-509.14686351,0.00023272,5]
[336642435,1724995840719,-500.0,0.00023272,5]
[336642437,1724995840730,-501.24269584,0.00023272,5]
[336642439,1724995840741,-511.11158517,0.00023272,5]
[336642442,1724995840752,-505.86757953,0.00023272,5]
[336642444,1724995840762,-506.69109826,0.00023272,5]
[336642446,1724995840772,-500.0,0.00023272,5]
[336642448,1724995840781,-1006.34201253,0.00023272,5]
[336642450,1724995840792,-503.21884035,0.00023272,5]
[336642452,1724995840802,-502.70207197,0.00023272,5]
[336642454,1724995840811,-502.7121998,0.00023272,5]
[336642456,1724995840821,-502.66915446,0.00023272,5]
[336642458,1724995840830,-501.65462488,0.00023272,5]
[336642460,1724995840840,-505.24606437,0.00023272,5]
[336642462,1724995840849,-500.0,0.00023272,5]
[336642464,1724995840858,-500.0,0.00023272,5]
[336642466,1724995840868,-501.16766095,0.00023272,5]
[336642468,1724995840878,-511.62425546,0.00023272,5]
[336642470,1724995840887,-500.0,0.00023272,5]
[336642472,1724995840896,-605.25317551,0.00023272,5]
[336642474,1724995840906,-500.0,0.00023272,5]
[336642476,1724995840916,-500.0,0.00023272,5]
[336642478,1724995840925,-503.99417888,0.00023272,5]
[336642480,1724995840935,-500.0,0.00023272,5]
[336642482,1724995840944,-640.85989498,0.00023272,5]
[336642484,1724995840953,-503.91093814,0.00023272,2]
[336642486,1724995840964,-500.91331617,0.00023272,5]
[336642488,1724995840973,-500.70733885,0.00023272,5]
[336642490,1724995840983,-501.07328173,0.00023272,5]
[336642492,1724995840992,-500.0,0.00023272,5]
[336642494,1724995841001,-500.0,0.00023272,5]
[336642496,1724995841011,-500.0,0.00023272,5]
[336642498,1724995841021,-506.60852718,0.00023272,5]
[336642500,1724995841030,-501.0262314,0.00023272,5]
[336642502,1724995841040,-500.0,0.00023272,5]
[336642504,1724995841050,-500.0,0.00023272,5]
[336642506,1724995841060,-151.62,0.00023272,5]
[336642508,1724995841069,-400.89000641,0.00023272,2]
[336642510,1724995841080,-500.0,0.00023272,2]
[336642512,1724995841092,-500.0,0.00023272,2]
[336642514,1724995841101,-165.80560693,0.00023272,2]
[336642516,1724995841110,-500.0,0.00023272,2]
[336642518,1724995841119,-500.0,0.00023272,2]
[336642520,1724995841130,-500.0,0.00023272,2]
[336642522,1724995841139,-431.8768683,0.00023272,2]
[336642524,1724995841148,-500.0,0.00023272,2]
[336642526,1724995841159,-500.0,0.00023272,2]
[336642528,1724995841169,-500.0,0.00023272,2]
[336642530,1724995841178,-500.0,0.00023272,2]
[336642532,1724995841187,-500.0,0.00023272,5]
[336642535,1724995841198,-500.0,0.00023272,5]
[336642537,1724995841208,-500.0,0.00023272,5]
[336642539,1724995841217,-500.0,0.00023272,5]
[336642541,1724995841226,-500.0,0.00023272,5]
[336642543,1724995841235,-500.0,0.00023272,2]
[336642545,1724995841244,-550.0,0.00023272,2]
[336642547,1724995841254,-500.0,0.00023272,5]
[336642549,1724995841263,-500.0,0.00023272,5]
[336642551,1724995841274,-500.0,0.00023272,5]
[336642553,1724995841283,-500.0,0.00023272,5]
[336642555,1724995841293,-703.86,0.00023272,5]
[336642557,1724995841302,-500.0,0.00023272,5]
[336642559,1724995841312,-500.0,0.00023272,5]
[336642561,1724995841321,-544.83,0.00023272,5]
[336642563,1724995841331,-500.0,0.00023272,5]
[336642565,1724995841342,-500.0,0.00023272,5]
[336642567,1724995841351,-500.0,0.00023272,5]
[336642569,1724995841360,-513.55420484,0.00023272,5]
[336642571,1724995841369,-500.0,0.00023272,5]
[336642573,1724995841378,-500.0,0.00023272,5]
[336642575,1724995841389,-500.0,0.00023272,5]
[336642577,1724995841401,-500.0,0.00023272,2]
[336642579,1724995841411,-500.0,0.00023272,5]
[336642581,1724995841420,-500.0,0.00023272,5]
[336642583,1724995841430,-500.0,0.00023272,5]
[336642585,1724995841440,-500.0,0.00023272,5]
[336642587,1724995841449,-500.0,0.00023272,5]
[336642589,1724995841459,-500.0,0.00023272,5]
[336642591,1724995841468,-500.0,0.00023272,5]
[336642593,1724995841478,-500.0,0.00023272,5]
[336642595,1724995841488,-500.0,0.00023272,5]
[336642597,1724995841497,-500.0,0.00023272,5]
[336642599,1724995841507,-155.02911367,0.00023273,2]
[336642601,1724995841516,-500.0,0.00023273,2]
[336642603,1724995841526,-500.0,0.00023273,2]
[336642605,1724995841535,-500.63419826,0.00023273,2]
[336642607,1724995841544,-501.64455656,0.00023273,5]
[336642609,1724995841554,-160.65,0.00023273,5]
[336642611,1724995841564,-500.0,0.00023273,5]
[336642613,1724995841573,-594.9,0.00023273,5]
[336642615,1724995841584,-500.0,0.00023273,5]
[336642617,1724995841593,-243.88,0.00023273,5]
[336642619,1724995841602,-506.74186247,0.00023273,5]
[336642621,1724995841612,-500.0,0.00023273,5]
[336642623,1724995841621,-502.69517344,0.00023273,5]
[336642625,1724995841630,-506.19438117,0.00023273,5]
[336642627,1724995841639,-500.0,0.00023273,5]
[336642629,1724995841648,-1225.61,0.00023273,5]
[336642630,1724995841657,-505.93180767,0.00023273,5]
[336642632,1724995841666,-500.0,0.00023273,5]
[336642634,1724995841675,-500.0,0.00023273,5]
[336642636,1724995841684,-500.0,0.00023273,5]
[336642638,1724995841693,-535.96284787,0.00023273,5]
[336642640,1724995841702,-500.0,0.00023273,5]
[336642642,1724995841711,-508.19375334,0.00023273,5]
[336642644,1724995841720,-500.0,0.00023273,5]
[336642646,1724995841729,-500.0,0.00023273,5]
[336642648,1724995841738,-500.0,0.00023273,5]
[336642650,1724995841748,-500.0,0.00023273,5]
[336642652,1724995841757,-634.73891093,0.00023273,5]
[336642654,1724995841766,-500.0,0.00023273,5]
[336642656,1724995841775,-500.0,0.00023273,5]
[336642658,1724995841784,-464.8471039,0.00023273,5]
[336642660,1724995841794,-500.0,0.00023273,5]
[336642662,1724995841803,-500.0,0.00023273,5]
[336642664,1724995841812,-500.0,0.00023273,5]
[336642666,1724995841821,-500.0,0.00023273,5]
[336642668,1724995841831,-500.0,0.00023273,5]
[336642670,1724995841842,-500.0,0.00023273,5]
[336642672,1724995841853,-500.0,0.00023273,5]
[336642674,1724995841864,-500.0,0.00023273,5]
[336642676,1724995841876,-500.0,0.00023273,5]
[336642679,1724995841887,-500.0,0.00023273,5]
[336642681,1724995841898,-500.0,0.00023273,5]
[336642683,1724995841909,-500.0,0.00023273,5]
[336642685,1724995841919,-500.0,0.00023273,5]
[336642687,1724995841931,-500.0,0.00023273,5]
[336642689,1724995841942,-500.0,0.00023273,5]
[336642691,1724995841954,-500.0,0.00023273,5]
[336642693,1724995841966,-500.0,0.00023273,5]
[336642696,1724995841976,-500.0,0.00023273,5]
[336642698,1724995841986,-507.11470261,0.00023273,5]
[336642700,1724995841996,-500.0,0.00023273,5]
[336642702,1724995842006,-500.0,0.00023273,5]
[336642704,1724995842015,-500.0,0.00023273,5]
[336642706,1724995842026,-500.0,0.00023273,5]
[336642708,1724995842035,-500.0,0.00023273,5]
[336642710,1724995842044,-500.0,0.00023273,5]
[336642712,1724995842054,-500.0,0.00023273,5]
[336642714,1724995842065,-500.0,0.00023273,5]
[336642716,1724995842078,-500.81928357,0.00023273,5]
[336642718,1724995842090,-500.0,0.00023273,5]
[336642721,1724995842100,-500.0,0.00023273,5]
[336642723,1724995842112,-500.0,0.00023273,5]
[336642724,1724995842122,-500.0,0.00023273,5]
[336642725,1724995842133,-500.0,0.00023273,5]
[336642726,1724995842143,-472.61331027,0.00023273,5]
[336642727,1724995842152,-500.0,0.00023273,5]
[336642728,1724995842162,-600.5062554,0.00023273,5]
[336642729,1724995842172,-500.0,0.00023273,5]
[336642730,1724995842182,-500.0,0.00023273,5]
[336642731,1724995842191,-500.0,0.00023273,5]
[336642732,1724995842201,-500.0,0.00023273,5]
[336642733,1724995842210,-500.0,0.00023273,5]
[336642734,1724995842219,-500.0,0.00023273,5]
[336642735,1724995842229,-500.0,0.00023273,5]
[336642736,1724995842239,-500.0,0.00023273,5]
[336642737,1724995842248,-500.0,0.00023273,5]
[336642738,1724995842258,-500.0,0.00023273,5]
[336642739,1724995842269,-500.0,0.00023273,5]
[336642740,1724995842278,-500.0,0.00023273,5]
[336642741,1724995842289,-500.0,0.00023273,5]
[336642742,1724995842300,-500.0,0.00023273,5]
[336642743,1724995842310,-500.0,0.00023273,5]
[336642744,1724995842320,-500.0,0.00023273,5]
[336642745,1724995842330,-500.0,0.00023273,5]
[336642746,1724995842340,-500.0,0.00023273,5]
[336642747,1724995842350,-500.0,0.00023273,5]
[336642748,1724995842362,-500.0,0.00023273,5]
[336642749,1724995842372,-504.00084308,0.00023546,5]
[336642750,1724995842382,-500.0,0.00023546,5]
[336642751,1724995842392,-500.0,0.00023546,5]
[336642752,1724995842404,-500.0,0.00023546,5]
[336642754,1724995842415,-536.8,0.00023546,5]
[336642756,1724995842425,-500.0,0.00023546,5]
[336642758,1724995842434,-500.0,0.00023546,5]
[336642760,1724995842444,-500.0,0.00023546,5]
[336642762,1724995842456,-561.59,0.00023546,5]
[336642764,1724995842466,-500.0,0.00023546,5]
[336642766,1724995842476,-500.0,0.00023546,5]
[336642768,1724995842485,-500.0,0.00023546,5]
[336642770,1724995842495,-703.86,0.00023546,5]
[336642772,1724995842504,-500.0,0.00023546,5]
[336642774,1724995842513,-544.83,0.00023546,5]
[336642776,1724995842522,-500.0,0.00023546,5]
[336642778,1724995842532,-500.0,0.00023546,5]
[336642780,1724995842541,-500.0,0.00023546,5]
[336642782,1724995842550,-500.0,0.00023546,2]
[336642784,1724995842559,-167.9,0.00023546,5]
[336642786,1724995842568,-500.0,0.00023546,5]
[336642789,1724995842577,-504.91569015,0.00023546,5]
[336642791,1724995842587,-500.0,0.00023546,5]
[336642793,1724995842596,-500.0,0.00023546,5]
[336642795,1724995842605,-501.68875556,0.00023546,5]
[336642797,1724995842614,-500.0,0.00023546,5]
[336642799,1724995842623,-500.0,0.00023546,5]
[336642801,1724995842632,-359.60165321,0.00023547,5]
[336642803,1724995842642,-1225.61,0.00023547,5]
[336642805,1724995842651,-500.0,0.00023547,5]
[336642807,1724995842661,-500.0,0.00023547,5]
[336642809,1724995842670,-507.5588951,0.00023547,5]
[336642811,1724995842680,-500.0,0.00023547,5]
[336642813,1724995842689,-500.0,0.00023547,5]
[336642815,1724995842699,-465.02039095,0.00023547,5]
[336642817,1724995842708,-306.57073855,0.00023547,5]
[336642819,1724995842717,-506.70514067,0.00023547,5]
[336642821,1724995842726,-500.0,0.00023547,5]
[336642823,1724995842735,-316.74,0.00023547,5]
[336642825,1724995842744,-500.0,0.00023547,5]
[336642827,1724995842753,-505.545086,0.00023547,5]
[336642829,1724995842763,-502.24491737,0.00023547,5]
[336642831,1724995842772,-500.0,0.00023547,5]
[336642833,1724995842781,-505.49028061,0.00023547,5]
[336642835,1724995842791,-500.0,0.00023547,5]
[336642837,1724995842800,-500.0,0.00023547,5]
[336642839,1724995842809,-409.80219987,0.00023547,5]
[336642841,1724995842819,-517.86919893,0.00023547,5]
[336642843,1724995842829,-501.83787685,0.00023547,5]
[336642845,1724995842839,-504.6439304,0.00023547,5]
[336642847,1724995842848,-501.59623105,0.00023547,5]
[336642849,1724995842858,-500.0,0.00023547,5]
[336642851,1724995842867,-500.0,0.00023547,5]
[336642853,1724995842877,-500.0,0.00023547,5]
[336642855,1724995842886,-500.0,0.00023547,5]
[336642857,1724995842895,-500.0,0.00023547,5]
[336642860,1724995842905,-505.63306781,0.00023547,5]
[336642863,1724995842916,-500.0,0.00023547,5]
[336642865,1724995842926,-500.0,0.00023547,5]
[336642867,1724995842936,-500.0,0.00023547,5]
[336642869,1724995842946,-500.0,0.00023547,5]
[336642871,1724995842956,-500.0,0.00023547,5]
[336642873,1724995842966,-500.0,0.00023547,5]
[336642875,1724995842975,-223.09522465,0.00023547,5]
[336642878,1724995842984,-500.0,0.00023547,5]
[336642880,1724995842995,-500.0,0.00023547,5]
[336642882,1724995843004,-500.0,0.00023547,5]
[336642885,1724995843014,-500.0,0.00023547,5]
[336642887,1724995843023,-500.0,0.00023547,5]
[336642890,1724995843033,-500.0,0.00023547,5]
[336642892,1724995843042,-504.52283279,0.00023547,5]
[336642894,1724995843052,-178.07686146,0.00023547,5]
[336642898,1724995843062,-500.0,0.00023547,5]
[336642902,1724995843071,-500.0,0.00023547,5]
[336642904,1724995843084,-500.0,0.00023547,5]
[336642906,1724995843094,-510.32,0.00023547,5]
[336642908,1724995843103,-500.0,0.00023547,5]
[336642910,1724995843112,-3907.85057719,0.000238,2]
[336642912,1724995843123,-505.31785191,0.0002382,5]
[336642914,1724995843133,-500.0,0.0002382,5]
[336642916,1724995843142,-703.86,0.0002382,5]
[336642918,1724995843151,-544.83,0.0002382,5]
[336642921,1724995843163,-500.0,0.0002382,5]
[336642924,1724995843172,-500.0,0.0002382,5]
[336642926,1724995843182,-500.0,0.0002382,2]
[336642928,1724995843191,-500.0,0.0002382,5]
[336642930,1724995843201,-500.0,0.0002382,5]
[336642932,1724995843210,-457.77,0.0002382,5]
[336642934,1724995843220,-645.27,0.0002382,5]
[336642936,1724995843231,-1225.61,0.00023821,5]
[336642938,1724995843241,-500.0,0.00023821,5]
[336642951,1724995843351,-500.0,0.00023821,5]
[336642953,1724995843363,-500.0,0.00023821,5]
[336642956,1724995843375,-249.03,0.00023821,5]
[336642958,1724995843386,-500.0,0.00023821,5]
[336642960,1724995843397,-642.68,0.00023821,5]
[336642962,1724995843408,-500.0,0.00023821,5]
[336642964,1724995843419,-500.0,0.00023821,5]
[336642966,1724995843430,-500.0,0.00024093,5]
[336642968,1724995843439,-500.0,0.00024094,5]
[336642970,1724995843449,-703.86,0.00024094,5]
[336642972,1724995843458,-544.83,0.00024094,5]
[336642974,1724995843468,-500.0,0.00024094,5]
[336642976,1724995843477,-500.0,0.00024094,5]
[336642978,1724995843487,-500.0,0.00024094,2]
[336642980,1724995843497,-500.0,0.00024094,5]
[336642982,1724995843507,-1225.61,0.00024095,5]
[336642984,1724995843519,-500.0,0.00024095,5]
[336642986,1724995843531,-500.0,0.00024095,5]
[336642988,1724995843541,-595.84,0.00024095,5]
[336642990,1724995843553,-500.0,0.00024095,5]
[336642993,1724995843565,-500.0,0.00024095,5]
[336642995,1724995843575,-500.0,0.00024095,5]
[336642997,1724995843586,-2123.4,0.0002436,3]
[336642999,1724995843595,-1061.7,0.0002436,3]
[336643001,1724995843604,-530.84,0.0002436,3]
[336643003,1724995843614,-500.0,0.00024368,5]
[336643006,1724995843625,-703.86,0.00024368,5]
[336643008,1724995843635,-544.83,0.00024368,5]
[336643010,1724995843644,-500.0,0.00024368,5]
[336643012,1724995843653,-500.0,0.00024368,5]
[336643014,1724995843664,-500.0,0.00024368,2]
[336643016,1724995843674,-500.0,0.00024368,5]
[336643018,1724995843686,-1225.61,0.00024369,5]
[336643020,1724995843698,-500.0,0.00024369,5]
[336643022,1724995843709,-500.0,0.00024369,5]
[336643024,1724995843721,-500.0,0.00024369,5]
[336643026,1724995843730,-500.0,0.00024369,5]
[336643028,1724995843741,-500.0,0.00024369,5]
[336643030,1724995843750,-218.45168302,0.00024416,2]
[336643032,1724995843760,-500.47105249,0.00024587,2]
[336643034,1724995843769,-500.0,0.00024642,5]
[336643036,1724995843779,-703.86,0.00024642,5]
[336643038,1724995843788,-544.83,0.00024642,5]
[336643040,1724995843797,-313.02,0.00024642,5]
[336643042,1724995843807,-500.0,0.00024642,5]
[336643044,1724995843816,-500.0,0.00024642,2]
[336643046,1724995843826,-500.0,0.00024642,5]
[336643048,1724995843835,-1225.61,0.00024643,5]
[336643050,1724995843845,-500.0,0.00024643,5]
[336643052,1724995843854,-568.14,0.00024643,5]
[336643054,1724995843864,-500.0,0.00024643,5]
[336643056,1724995843874,-500.0,0.00024643,5]
[336643058,1724995843883,-500.0,0.00024643,5]
[336643060,1724995843893,-208.949355,0.00024859,2]
[336643062,1724995843902,-500.0,0.00024916,5]
[336643064,1724995843911,-703.86,0.00024916,5]
[336643066,1724995843922,-544.83,0.00024916,5]
[336643068,1724995843931,-500.0,0.00024916,5]
[336643070,1724995843942,-500.0,0.00024916,2]
[336643072,1724995843953,-315.97,0.00024916,5]
[336643074,1724995843962,-1225.61,0.00024917,5]
[336643076,1724995843972,-500.0,0.00024917,5]
[336643079,1724995843982,-500.0,0.00024917,5]
[336643081,1724995843992,-500.0,0.00024917,5]
[336643083,1724995844002,-500.0,0.00024917,5]
[336643085,1724995844011,-107315.24850852,0.00025,2]
[336643087,1724995844026,-98269.21540081,0.00025,2]
[336643089,1724995844035,-10739.34804375,0.00025,2]
[336643091,1724995844045,-49619.27717451,0.00025,2]
[336643093,1724995844055,-665.44,0.00025,14]
[336643095,1724995844064,-344.18,0.00025,14]
[336643097,1724995844075,-500.0,0.00025073,2]
[336643099,1724995844088,-500.0,0.00025073,2]
[336643101,1724995844097,-349.44910089,0.00025073,2]
[336643103,1724995844107,-500.4402841,0.00025073,2]
[336643105,1724995844116,-46265.39994502,0.0002509,2]
[336643111,1724995844158,-500.0,0.00022998,5]
[336643113,1724995844168,-43681.83860816,0.0002509,2]
[336643118,1724995844201,-27615.0804635,0.0002509,2]
[336643369,1724995846495,-500.0,0.00022999,5]
[336643371,1724995846505,-500.0,0.00023272,5]
[336643374,1724995846515,-500.0,0.00023273,5]
[336643376,1724995846526,-500.0,0.00023546,5]
[336643378,1724995846536,-772.21294277,0.00023721,2]
[336644318,1724996029844,158.506341,0.00014247,2]
[336644321,1724996275238,249.518657,0.0001863,2]
[336644331,1724996779581,237.042724,0.0001863,2]
[336644449,1724997038684,-251.0,0.00020043,2]
[336644451,1724997038695,-573.440377,0.00020049,2]
[336644453,1724997038706,-3000.0,0.0002007,2]
[336644455,1724997038717,-1243.51803254,0.00020968,2]
[336644457,1724997038726,-3000.0,0.00021,2]
[336644459,1724997038736,-300.0,0.00021009,2]
[336644461,1724997038746,-182.0,0.00021009,2]
[336644463,1724997038755,-3000.0,0.0002101,2]
[336644466,1724997038766,-7510.39304045,0.00021019,2]
[336644468,1724997038776,-3000.0,0.0002102,2]
[336644470,1724997038787,-3000.0,0.0002103,2]
[336644472,1724997038799,-3000.0,0.0002104,2]
[336644474,1724997038810,-3000.0,0.0002105,2]
[336644476,1724997038820,-3000.0,0.0002106,2]
[336644478,1724997038829,-998.60195726,0.00021068,2]
[336644480,1724997038839,-231.95331711,0.00021069,2]
[336644482,1724997038849,-500.87624775,0.00021069,2]
[336644484,1724997038860,-500.87624775,0.00021069,2]
[336644486,1724997038870,-500.87624775,0.00021069,2]
[336644489,1724997038882,-500.87624775,0.00021069,2]
[336644491,1724997038892,-500.87624775,0.00021069,2]
[336644493,1724997038903,-500.87624775,0.00021069,2]
[336644495,1724997038913,-500.87624775,0.00021069,2]
[336644497,1724997038925,-500.87624775,0.00021069,2]
[336644500,1724997038936,-500.87624775,0.00021069,2]
[336644502,1724997038947,-500.87624775,0.00021069,2]
[336644504,1724997038957,-500.87624775,0.00021069,2]
[336644506,1724997038971,-500.87624775,0.00021069,2]
[336644508,1724997038984,-500.87624775,0.00021069,2]
[336644511,1724997038995,-500.87624775,0.00021069,2]
[336644513,1724997039005,-500.87624775,0.00021069,2]
[336644515,1724997039015,-500.87624775,0.00021069,2]
[336644517,1724997039025,-500.87624775,0.00021069,2]
[336644519,1724997039036,-500.87624775,0.00021069,2]
[336644522,1724997039048,-500.87624775,0.00021069,2]
[336644524,1724997039059,-500.87624775,0.00021069,2]
[336644526,1724997039070,-500.87624775,0.00021069,2]
[336644528,1724997039080,-500.87624775,0.00021069,2]
[336644530,1724997039091,-500.87624775,0.00021069,2]
[336644532,1724997039101,-500.87624775,0.00021069,2]
[336644535,1724997039114,-500.87624775,0.00021069,2]
[336644537,1724997039125,-500.87624775,0.00021069,2]
[336644539,1724997039135,-500.87624775,0.00021069,2]
[336644541,1724997039147,-500.87624775,0.00021069,2]
[336644543,1724997039156,-500.87624775,0.00021069,2]
[336644545,1724997039167,-500.87624775,0.00021069,2]
[336644547,1724997039177,-500.87624775,0.00021069,2]
[336644549,1724997039186,-500.87624775,0.00021069,2]
[336644551,1724997039196,-500.87624775,0.00021069,2]
[336644553,1724997039205,-500.87624775,0.00021069,2]
[336644555,1724997039216,-500.87624775,0.00021069,2]
[336644557,1724997039225,-500.87624775,0.00021069,2]
[336644559,1724997039236,-500.87624775,0.00021069,2]
[336644561,1724997039246,-500.87624775,0.00021069,2]
[336644564,1724997039256,-500.87624775,0.00021069,2]
[336644565,1724997039266,-500.87624775,0.00021069,2]
[336644567,1724997039276,-500.87624775,0.00021069,2]
[336644569,1724997039286,-500.87624775,0.00021069,2]
[336644572,1724997039297,-500.87624775,0.00021069,2]
[336644574,1724997039307,-500.87624775,0.00021069,2]
[336644576,1724997039318,-500.87624775,0.00021069,2]
[336644578,1724997039329,-500.87624775,0.00021069,2]
[336644580,1724997039339,-500.87624775,0.00021069,2]
[336644582,1724997039350,-500.87624775,0.00021069,2]
[336644584,1724997039361,-500.87624775,0.00021069,2]
[336644587,1724997039374,-500.87624775,0.00021069,2]
[336644589,1724997039385,-500.87624775,0.00021069,2]
[336644591,1724997039395,-500.87624775,0.00021069,2]
[336644593,1724997039406,-600.13142375,0.00021069,2]
[336644595,1724997039419,-600.13142375,0.00021069,2]